[Event "*** Titled Tuesday Blitz"]
[Site "Chess.com"]
[Date "2020.11.03"]
[Round "3"]
[White "sjam6687"]
[Black "Brave_spirit12"]
[Result "1-0"]
[WhiteElo "2714"]
[BlackElo "2496"]
[TimeControl "180+1"]
[EndTime "10:30:38 PST"]
[Termination "sjam6687 won by resignation"]

1. d4 {[%clk 0:03:00.9]} 1... Nf6 {[%clk 0:02:59.4]} 2. c4 {[%clk 0:03:00]} 2...
e6 {[%clk 0:02:59.5]} 3. Nf3 {[%clk 0:02:59.3]} 3... d5 {[%clk 0:03:00.1]} 4.
Nc3 {[%clk 0:02:57.7]} 4... Be7 {[%clk 0:03:00.5]} 5. cxd5 {[%clk 0:02:57.3]}
5... exd5 {[%clk 0:03:01.4]} 6. Bf4 {[%clk 0:02:55.4]} 6... O-O {[%clk
0:03:01.9]} 7. e3 {[%clk 0:02:54.3]} 7... c6 {[%clk 0:03:02.5]} 8. Bd3 {[%clk
0:02:53.8]} 8... Re8 {[%clk 0:03:00.8]} 9. O-O {[%clk 0:02:52.8]} 9... Bg4
{[%clk 0:02:59.3]} 10. h3 {[%clk 0:02:51]} 10... Bh5 {[%clk 0:02:59.2]} 11. g4
{[%clk 0:02:49.1]} 11... Bg6 {[%clk 0:02:58.7]} 12. Bxg6 {[%clk 0:02:48.8]}
12... hxg6 {[%clk 0:02:59.6]} 13. Ne5 {[%clk 0:02:47.9]} 13... Nbd7 {[%clk
0:02:59]} 14. Kg2 {[%clk 0:02:45.9]} 14... Nxe5 {[%clk 0:02:45.4]} 15. Bxe5
{[%clk 0:02:46.8]} 15... Bd6 {[%clk 0:02:44.9]} 16. f4 {[%clk 0:02:42.4]} 16...
Ne4 {[%clk 0:02:37]} 17. Nxe4 {[%clk 0:02:40.5]} 17... dxe4 {[%clk 0:02:37.9]}
18. Qb3 {[%clk 0:02:40.2]} 18... b6 {[%clk 0:02:31.9]} 19. Rac1 {[%clk
0:02:37.7]} 19... Qd7 {[%clk 0:02:29.9]} 20. Qc4 {[%clk 0:02:34.4]} 20... c5
{[%clk 0:02:28.1]} 21. Rfd1 {[%clk 0:02:31.8]} 21... Bxe5 {[%clk 0:02:23]} 22.
dxe5 {[%clk 0:02:30.2]} 22... Qc6 {[%clk 0:02:22]} 23. Rd6 {[%clk 0:02:28.5]}
23... Qb7 {[%clk 0:02:22.4]} 24. Rcd1 {[%clk 0:02:26.7]} 24... Re7 {[%clk
0:02:22.2]} 25. e6 {[%clk 0:02:22.2]} 25... fxe6 {[%clk 0:02:15.6]} 26. Rxe6
{[%clk 0:02:20.6]} 26... Kh7 {[%clk 0:02:16.1]} 27. Rxe7 {[%clk 0:02:10.1]}
27... Qxe7 {[%clk 0:02:17]} 28. Qd5 {[%clk 0:02:08.9]} 28... Rf8 {[%clk
0:02:13.2]} 29. Kg3 {[%clk 0:02:06.1]} 29... g5 {[%clk 0:02:03.3]} 30. f5 {[%clk
0:02:00.7]} 30... Qc7+ {[%clk 0:02:01.7]} 31. Qd6 {[%clk 0:01:58.9]} 31... Qf7
{[%clk 0:02:00.4]} 32. Rd5 {[%clk 0:01:54.5]} 32... Re8 {[%clk 0:01:52.4]} 33.
Qd7 {[%clk 0:01:48.3]} 33... Re7 {[%clk 0:01:50.6]} 34. Qd8 {[%clk 0:01:44.7]}
34... Re8 {[%clk 0:01:44.5]} 35. Qd6 {[%clk 0:01:37.9]} 35... Re7 {[%clk
0:01:40.1]} 36. h4 {[%clk 0:01:33.5]} 36... gxh4+ {[%clk 0:01:38.9]} 37. Kxh4
{[%clk 0:01:31]} 37... Qf6+ {[%clk 0:01:14.1]} 38. g5 {[%clk 0:01:30.8]} 38...
Qf8 {[%clk 0:00:38.7]} 39. Qg6+ {[%clk 0:01:21.6]} 39... Kh8 {[%clk 0:00:35.6]}
40. Qh5+ {[%clk 0:01:18.9]} 40... Kg8 {[%clk 0:00:35.3]} 41. g6 {[%clk
0:01:18.1]} 41... Qf6+ {[%clk 0:00:24.9]} 42. Kg3 {[%clk 0:01:17.7]} 42... Re8
{[%clk 0:00:21.5]} 43. Qh7+ {[%clk 0:01:11.4]} 43... Kf8 {[%clk 0:00:21.6]} 44.
Rd7 {[%clk 0:01:07.8]} 44... Qg5+ {[%clk 0:00:19]} 45. Kh2 {[%clk 0:01:01.5]}
45... Qh6+ {[%clk 0:00:07.2]} 46. Qxh6 {[%clk 0:00:58.7]} 46... gxh6 {[%clk
0:00:08.1]} 47. f6 {[%clk 0:00:59.5]} 47... Rc8 {[%clk 0:00:08.2]} 48. Rh7
{[%clk 0:00:57.2]} 1-0

[Event "*** Titled Tuesday Blitz"]
[Site "Chess.com"]
[Date "2020.11.03"]
[Round "3"]
[White "Vyacheslav_N"]
[Black "xberli"]
[Result "0-1"]
[WhiteElo "2322"]
[BlackElo "2550"]
[TimeControl "180+1"]
[EndTime "10:30:38 PST"]
[Termination "xberli won on time"]

1. e4 {[%clk 0:03:00.9]} 1... c5 {[%clk 0:02:57.8]} 2. Nf3 {[%clk 0:03:00.7]}
2... d6 {[%clk 0:02:58]} 3. d4 {[%clk 0:03:01.2]} 3... cxd4 {[%clk 0:02:58.9]}
4. Nxd4 {[%clk 0:03:01.9]} 4... Nf6 {[%clk 0:02:59.2]} 5. f3 {[%clk 0:03:02.6]}
5... e5 {[%clk 0:02:58.6]} 6. Nb3 {[%clk 0:03:02.9]} 6... Be7 {[%clk 0:02:59]}
7. c4 {[%clk 0:03:03.2]} 7... O-O {[%clk 0:02:59.7]} 8. Nc3 {[%clk 0:03:03.8]}
8... a5 {[%clk 0:03:00.5]} 9. a4 {[%clk 0:02:59.4]} 9... Nc6 {[%clk 0:02:59.6]}
10. Be3 {[%clk 0:02:59.7]} 10... Nb4 {[%clk 0:02:58.6]} 11. Qd2 {[%clk
0:02:58.3]} 11... Nh5 {[%clk 0:02:57.4]} 12. Nd5 {[%clk 0:02:55.5]} 12... Nxd5
{[%clk 0:02:55.7]} 13. cxd5 {[%clk 0:02:56.4]} 13... Nf4 {[%clk 0:02:43.9]} 14.
g3 {[%clk 0:02:52]} 14... Nh3 {[%clk 0:02:30.7]} 15. Bd3 {[%clk 0:02:34.7]}
15... h6 {[%clk 0:02:19.9]} 16. Qg2 {[%clk 0:02:27.1]} 16... Bg5 {[%clk
0:02:13.5]} 17. Bxg5 {[%clk 0:02:06]} 17... hxg5 {[%clk 0:02:14.4]} 18. Nd2
{[%clk 0:01:51.8]} 18... g4 {[%clk 0:01:51.6]} 19. fxg4 {[%clk 0:01:49.5]} 19...
Bxg4 {[%clk 0:01:52.5]} 20. Nc4 {[%clk 0:01:36.6]} 20... Ng5 {[%clk 0:01:36.5]}
21. Be2 {[%clk 0:01:35.9]} 21... Bh3 {[%clk 0:01:29.3]} 22. Qf2 {[%clk
0:01:19.3]} 22... Nxe4 {[%clk 0:01:22.1]} 23. Qe3 {[%clk 0:01:19.1]} 23... Nc5
{[%clk 0:01:13.9]} 24. g4 {[%clk 0:01:13.2]} 24... Bg2 {[%clk 0:01:07.3]} 25.
Rg1 {[%clk 0:00:58.3]} 25... Bxd5 {[%clk 0:01:05.4]} 26. g5 {[%clk 0:00:46.2]}
26... Ne6 {[%clk 0:00:48.5]} 27. Rd1 {[%clk 0:00:42.5]} 27... Nd4 {[%clk
0:00:43.3]} 28. Rxd4 {[%clk 0:00:24.1]} 28... exd4 {[%clk 0:00:44.2]} 29. Qxd4
{[%clk 0:00:25]} 29... Bxc4 {[%clk 0:00:36.3]} 30. Bxc4 {[%clk 0:00:25.9]} 30...
Qe7+ {[%clk 0:00:34.8]} 31. Kd1 {[%clk 0:00:24.9]} 31... Qe5 {[%clk 0:00:33.2]}
32. Qh4 {[%clk 0:00:17.3]} 32... g6 {[%clk 0:00:27.6]} 33. Rg3 {[%clk
0:00:14.6]} 33... Rfe8 {[%clk 0:00:17.2]} 34. Rh3 {[%clk 0:00:12.4]} 34... Qg7
{[%clk 0:00:16.5]} 35. Rf3 {[%clk 0:00:04.1]} 35... d5 {[%clk 0:00:16]} 0-1

[Event "*** Titled Tuesday Blitz"]
[Site "Chess.com"]
[Date "2020.11.03"]
[Round "3"]
[White "MatyChess1"]
[Black "Agoking701"]
[Result "1-0"]
[WhiteElo "2581"]
[BlackElo "2365"]
[TimeControl "180+1"]
[EndTime "10:30:39 PST"]
[Termination "MatyChess1 won by resignation"]

1. e4 {[%clk 0:03:00.9]} 1... c6 {[%clk 0:02:55.3]} 2. Nf3 {[%clk 0:03:00.4]}
2... d5 {[%clk 0:02:56.2]} 3. Nc3 {[%clk 0:03:01.3]} 3... Nf6 {[%clk 0:02:52.2]}
4. e5 {[%clk 0:03:00.6]} 4... Ne4 {[%clk 0:02:52.2]} 5. Nxe4 {[%clk 0:03:00.3]}
5... dxe4 {[%clk 0:02:50.9]} 6. Ng5 {[%clk 0:03:00.9]} 6... Qd5 {[%clk
0:02:51.3]} 7. d4 {[%clk 0:03:00.5]} 7... exd3 {[%clk 0:02:43.1]} 8. Qxd3 {[%clk
0:02:59.7]} 8... Qxe5+ {[%clk 0:02:36.3]} 9. Be2 {[%clk 0:02:55.6]} 9... e6
{[%clk 0:02:25.3]} 10. Qd8+ {[%clk 0:02:50.9]} 10... Kxd8 {[%clk 0:02:23]} 11.
Nxf7+ {[%clk 0:02:50.8]} 11... Ke8 {[%clk 0:02:12.2]} 12. Nxe5 {[%clk
0:02:50.4]} 12... Nd7 {[%clk 0:02:12.8]} 13. Bf4 {[%clk 0:02:46.8]} 13... Bd6
{[%clk 0:02:05.2]} 14. Nd3 {[%clk 0:02:14.5]} 14... Bxf4 {[%clk 0:02:00.3]} 15.
Nxf4 {[%clk 0:02:14.9]} 15... Nf6 {[%clk 0:01:48.6]} 16. O-O-O {[%clk 0:02:13]}
16... Nd5 {[%clk 0:01:44.3]} 17. Nd3 {[%clk 0:02:08.5]} 17... Rf8 {[%clk
0:01:31.5]} 18. Rhe1 {[%clk 0:02:08.4]} 18... Bd7 {[%clk 0:01:26.2]} 19. Bg4
{[%clk 0:01:54.6]} 19... Rf6 {[%clk 0:01:11.2]} 20. f3 {[%clk 0:01:51.1]} 20...
Ke7 {[%clk 0:01:01.9]} 21. Nc5 {[%clk 0:01:47.9]} 21... b6 {[%clk 0:00:56.1]}
22. Nxd7 {[%clk 0:01:47.2]} 22... Kxd7 {[%clk 0:00:55.3]} 23. c4 {[%clk
0:01:48.1]} 23... Kd6 {[%clk 0:00:51.1]} 24. cxd5 {[%clk 0:01:47.7]} 24... cxd5
{[%clk 0:00:48.8]} 25. f4 {[%clk 0:01:41.9]} 25... Rc8+ {[%clk 0:00:42.8]} 26.
Kb1 {[%clk 0:01:41.3]} 26... Rc4 {[%clk 0:00:43.2]} 27. g3 {[%clk 0:01:40.4]}
27... Rh6 {[%clk 0:00:38.5]} 28. Rd2 {[%clk 0:01:34.1]} 28... g5 {[%clk
0:00:34.6]} 29. Rde2 {[%clk 0:00:46.4]} 29... Kc5 {[%clk 0:00:23.5]} 30. fxg5
{[%clk 0:00:38.8]} 30... Rg6 {[%clk 0:00:20.1]} 31. Rc1 {[%clk 0:00:38.6]} 31...
Rxc1+ {[%clk 0:00:14.2]} 32. Kxc1 {[%clk 0:00:38.5]} 32... Kd6 {[%clk
0:00:14.6]} 33. h4 {[%clk 0:00:38.3]} 33... h6 {[%clk 0:00:11.4]} 34. Rxe6+
{[%clk 0:00:26.3]} 34... Rxe6 {[%clk 0:00:08.1]} 35. Bxe6 {[%clk 0:00:27.2]}
35... Kxe6 {[%clk 0:00:06]} 36. gxh6 {[%clk 0:00:26.7]} 36... Kf6 {[%clk
0:00:06.2]} 37. g4 {[%clk 0:00:26.8]} 37... Kg6 {[%clk 0:00:06.2]} 38. g5 {[%clk
0:00:27.3]} 38... a5 {[%clk 0:00:05.9]} 39. Kd2 {[%clk 0:00:27.6]} 39... a4
{[%clk 0:00:06.2]} 40. a3 {[%clk 0:00:27.3]} 1-0

[Event "*** Titled Tuesday Blitz"]
[Site "Chess.com"]
[Date "2020.11.03"]
[Round "3"]
[White "novocane"]
[Black "maximnovik"]
[Result "0-1"]
[WhiteElo "2302"]
[BlackElo "2530"]
[TimeControl "180+1"]
[EndTime "10:30:39 PST"]
[Termination "maximnovik won on time"]

1. d4 {[%clk 0:02:58.6]} 1... Nf6 {[%clk 0:02:57.4]} 2. c4 {[%clk 0:02:56.8]}
2... g6 {[%clk 0:02:55.3]} 3. Nc3 {[%clk 0:02:55.8]} 3... d5 {[%clk 0:02:55.8]}
4. cxd5 {[%clk 0:02:55]} 4... Nxd5 {[%clk 0:02:56.3]} 5. e4 {[%clk 0:02:54.9]}
5... Nxc3 {[%clk 0:02:56.7]} 6. bxc3 {[%clk 0:02:54.7]} 6... Bg7 {[%clk
0:02:57.3]} 7. Qa4+ {[%clk 0:02:53.3]} 7... Nd7 {[%clk 0:02:55.8]} 8. Nf3 {[%clk
0:02:49.5]} 8... O-O {[%clk 0:02:55.7]} 9. Be3 {[%clk 0:02:35.7]} 9... c5 {[%clk
0:02:54.5]} 10. Rd1 {[%clk 0:02:32.9]} 10... Qc7 {[%clk 0:02:53.2]} 11. Qa3
{[%clk 0:02:22.6]} 11... e5 {[%clk 0:02:45.9]} 12. d5 {[%clk 0:02:13.8]} 12...
f5 {[%clk 0:02:43.4]} 13. d6 {[%clk 0:02:05.2]} 13... Qd8 {[%clk 0:02:42.3]} 14.
Bc4+ {[%clk 0:01:58.3]} 14... Kh8 {[%clk 0:02:41.5]} 15. Ng5 {[%clk 0:01:55.7]}
15... f4 {[%clk 0:02:17.1]} 16. Ne6 {[%clk 0:01:47.6]} 16... Qf6 {[%clk
0:02:16.4]} 17. Bxc5 {[%clk 0:01:30.2]} 17... f3 {[%clk 0:02:10.5]} 18. g3
{[%clk 0:01:23.6]} 18... Nxc5 {[%clk 0:02:07.6]} 19. Nxc5 {[%clk 0:00:50.2]}
19... Bh3 {[%clk 0:02:01.1]} 20. Bf1 {[%clk 0:00:40.2]} 20... Bg2 {[%clk
0:01:56.1]} 21. Rg1 {[%clk 0:00:38.8]} 21... Rf7 {[%clk 0:01:45.1]} 22. Bxg2
{[%clk 0:00:36.8]} 22... fxg2 {[%clk 0:01:43.5]} 23. Qb2 {[%clk 0:00:30.7]}
23... b6 {[%clk 0:01:33.9]} 24. Nd3 {[%clk 0:00:30.7]} 24... Qxd6 {[%clk
0:01:29]} 25. Nf4 {[%clk 0:00:29.4]} 25... Qc5 {[%clk 0:01:20.3]} 26. Nd5 {[%clk
0:00:28.9]} 26... Raf8 {[%clk 0:00:59.3]} 27. Rxg2 {[%clk 0:00:28.3]} 27... h5
{[%clk 0:00:55.4]} 28. h4 {[%clk 0:00:27.8]} 28... Bh6 {[%clk 0:00:55]} 29. Qe2
{[%clk 0:00:26.2]} 29... Rf3 {[%clk 0:00:52.4]} 30. Rd3 {[%clk 0:00:16.3]} 30...
Rxd3 {[%clk 0:00:47.5]} 31. Qxd3 {[%clk 0:00:16.1]} 31... Qa3 {[%clk 0:00:47.9]}
32. Qc2 {[%clk 0:00:12.5]} 32... Qc5 {[%clk 0:00:40.8]} 33. Kf1 {[%clk
0:00:07.9]} 33... b5 {[%clk 0:00:39.3]} 34. Kg1 {[%clk 0:00:04.5]} 34... a5
{[%clk 0:00:39.7]} 35. Kh2 {[%clk 0:00:03.9]} 35... b4 {[%clk 0:00:39.6]} 36.
Qd3 {[%clk 0:00:02.2]} 36... Rxf2 {[%clk 0:00:36.5]} 37. cxb4 {[%clk 0:00:01.8]}
37... axb4 {[%clk 0:00:34.4]} 0-1

[Event "*** Titled Tuesday Blitz"]
[Site "Chess.com"]
[Date "2020.11.03"]
[Round "3"]
[White "DishonorOnYourCow"]
[Black "Iball95"]
[Result "1-0"]
[WhiteElo "2406"]
[BlackElo "2595"]
[TimeControl "180+1"]
[EndTime "10:30:40 PST"]
[Termination "DishonorOnYourCow won by resignation"]

1. d4 {[%clk 0:03:00.9]} 1... e6 {[%clk 0:02:53.9]} 2. c4 {[%clk 0:03:00.3]}
2... Nf6 {[%clk 0:02:46.2]} 3. Nf3 {[%clk 0:02:56.6]} 3... d5 {[%clk 0:02:38.9]}
4. Nc3 {[%clk 0:02:56.3]} 4... Bb4 {[%clk 0:02:32.5]} 5. Bg5 {[%clk 0:02:54.3]}
5... h6 {[%clk 0:02:29.6]} 6. Bxf6 {[%clk 0:02:54.1]} 6... Qxf6 {[%clk
0:02:29.3]} 7. e3 {[%clk 0:02:54.2]} 7... O-O {[%clk 0:02:24.9]} 8. Rc1 {[%clk
0:02:51.3]} 8... a6 {[%clk 0:02:10.2]} 9. cxd5 {[%clk 0:02:44.8]} 9... exd5
{[%clk 0:02:11.1]} 10. a3 {[%clk 0:02:43]} 10... Bxc3+ {[%clk 0:02:09.5]} 11.
Rxc3 {[%clk 0:02:43.9]} 11... Nc6 {[%clk 0:02:06.2]} 12. Be2 {[%clk 0:02:40.1]}
12... Bg4 {[%clk 0:02:03.8]} 13. O-O {[%clk 0:02:39.4]} 13... Qd6 {[%clk
0:01:59.3]} 14. h3 {[%clk 0:02:38.6]} 14... Bxf3 {[%clk 0:01:56.6]} 15. Bxf3
{[%clk 0:02:38.4]} 15... Ne7 {[%clk 0:01:55.3]} 16. Qb3 {[%clk 0:02:34.3]} 16...
Rab8 {[%clk 0:01:52.2]} 17. Rfc1 {[%clk 0:02:32]} 17... c6 {[%clk 0:01:52.5]}
18. g3 {[%clk 0:02:22.9]} 18... Rfe8 {[%clk 0:01:51.7]} 19. Bg2 {[%clk
0:02:14.2]} 19... Nf5 {[%clk 0:01:49.9]} 20. Qb6 {[%clk 0:02:10.6]} 20... h5
{[%clk 0:01:41.3]} 21. b4 {[%clk 0:02:06.1]} 21... Qe7 {[%clk 0:01:35.2]} 22. a4
{[%clk 0:02:00.7]} 22... Nd6 {[%clk 0:01:34.9]} 23. Qc5 {[%clk 0:01:56.4]} 23...
Rbd8 {[%clk 0:01:29.9]} 24. a5 {[%clk 0:01:46.5]} 24... h4 {[%clk 0:01:18]} 25.
g4 {[%clk 0:01:45.5]} 25... Qg5 {[%clk 0:01:16]} 26. Re1 {[%clk 0:01:14.2]}
26... Qg6 {[%clk 0:01:02.6]} 27. Qb6 {[%clk 0:01:06.6]} 27... Rd7 {[%clk
0:01:01.8]} 28. f3 {[%clk 0:00:57.9]} 28... Rde7 {[%clk 0:01:00.2]} 29. Qc5
{[%clk 0:00:55.6]} 29... Nb5 {[%clk 0:00:53]} 30. Rb3 {[%clk 0:00:52]} 30... Qf6
{[%clk 0:00:52.7]} 31. Rd3 {[%clk 0:00:41.9]} 31... Qg6 {[%clk 0:00:46.7]} 32.
e4 {[%clk 0:00:38.5]} 32... f6 {[%clk 0:00:34]} 33. Rde3 {[%clk 0:00:33.9]}
33... Qf7 {[%clk 0:00:31.2]} 34. Bf1 {[%clk 0:00:26.5]} 34... dxe4 {[%clk
0:00:30.7]} 35. Bc4 {[%clk 0:00:26.1]} 35... Re6 {[%clk 0:00:25.4]} 36. Rxe4
{[%clk 0:00:26]} 36... Nc7 {[%clk 0:00:23.9]} 37. Bxe6 {[%clk 0:00:25.1]} 37...
Nxe6 {[%clk 0:00:24.8]} 38. Qd6 {[%clk 0:00:24.9]} 38... Nc7 {[%clk 0:00:21.1]}
39. Rxe8+ {[%clk 0:00:24.6]} 39... Nxe8 {[%clk 0:00:22]} 40. Qd8 {[%clk
0:00:24.5]} 40... Kf8 {[%clk 0:00:22.3]} 41. Kg2 {[%clk 0:00:18.4]} 41... f5
{[%clk 0:00:20.3]} 42. g5 {[%clk 0:00:17.8]} 42... f4 {[%clk 0:00:19.4]} 43. Kf2
{[%clk 0:00:17.4]} 43... Qg6 {[%clk 0:00:19.2]} 44. Qe7+ {[%clk 0:00:17]} 44...
Kg8 {[%clk 0:00:18.6]} 45. Qxe8+ {[%clk 0:00:17.9]} 1-0

[Event "*** Titled Tuesday Blitz"]
[Site "Chess.com"]
[Date "2020.11.03"]
[Round "3"]
[White "LisikValera"]
[Black "BikingBrian"]
[Result "1-0"]
[WhiteElo "2521"]
[BlackElo "2279"]
[TimeControl "180+1"]
[EndTime "10:30:41 PST"]
[Termination "LisikValera won by resignation"]

1. d4 {[%clk 0:03:00.5]} 1... Nf6 {[%clk 0:02:59.3]} 2. c4 {[%clk 0:02:58.1]}
2... g6 {[%clk 0:02:59.6]} 3. Nc3 {[%clk 0:02:58.1]} 3... Bg7 {[%clk 0:03:00]}
4. e4 {[%clk 0:02:58.2]} 4... d6 {[%clk 0:03:00.6]} 5. Nf3 {[%clk 0:02:58.4]}
5... O-O {[%clk 0:03:00.6]} 6. Be2 {[%clk 0:02:58.6]} 6... Na6 {[%clk
0:03:00.8]} 7. Bg5 {[%clk 0:02:56.2]} 7... h6 {[%clk 0:02:59]} 8. Bh4 {[%clk
0:02:56.2]} 8... g5 {[%clk 0:02:58.7]} 9. Bg3 {[%clk 0:02:56.2]} 9... Nh5 {[%clk
0:02:51.7]} 10. O-O {[%clk 0:02:55.9]} 10... e5 {[%clk 0:02:50.7]} 11. d5 {[%clk
0:02:55.7]} 11... Nf4 {[%clk 0:02:41.6]} 12. Ne1 {[%clk 0:02:53.5]} 12... f5
{[%clk 0:02:41.8]} 13. exf5 {[%clk 0:02:52.7]} 13... Bxf5 {[%clk 0:02:41.2]} 14.
Bg4 {[%clk 0:02:52.4]} 14... Qd7 {[%clk 0:02:33.6]} 15. Bxf5 {[%clk 0:02:51.9]}
15... Qxf5 {[%clk 0:02:34.5]} 16. f3 {[%clk 0:02:52.3]} 16... h5 {[%clk
0:02:09.4]} 17. Qc2 {[%clk 0:02:48.9]} 17... Qxc2 {[%clk 0:02:03.5]} 18. Nxc2
{[%clk 0:02:47.1]} 18... Nc5 {[%clk 0:01:59.1]} 19. Rab1 {[%clk 0:02:21.4]}
19... a5 {[%clk 0:01:50.4]} 20. Bf2 {[%clk 0:02:18.7]} 20... b6 {[%clk
0:01:30.4]} 21. Bxc5 {[%clk 0:02:14.3]} 21... bxc5 {[%clk 0:01:31.3]} 22. Ne4
{[%clk 0:02:12.8]} 22... g4 {[%clk 0:01:18.1]} 23. fxg4 {[%clk 0:02:09.4]} 23...
hxg4 {[%clk 0:01:19]} 24. Ne3 {[%clk 0:02:09.3]} 24... Ne2+ {[%clk 0:01:14.7]}
25. Kh1 {[%clk 0:02:08.5]} 25... g3 {[%clk 0:01:14.2]} 26. Nxg3 {[%clk
0:02:03.7]} 26... Nxg3+ {[%clk 0:01:08.3]} 27. hxg3 {[%clk 0:02:04.6]} 27... Bh6
{[%clk 0:01:06.5]} 28. Ng4 {[%clk 0:02:02.5]} 28... Bg5 {[%clk 0:01:02.9]} 29.
Kg1 {[%clk 0:01:59.5]} 29... e4 {[%clk 0:00:57.4]} 30. Rxf8+ {[%clk 0:01:50]}
30... Rxf8 {[%clk 0:00:55.6]} 31. Re1 {[%clk 0:01:50.3]} 31... Re8 {[%clk
0:00:55.5]} 32. Kf2 {[%clk 0:01:44.6]} 32... Kg7 {[%clk 0:00:54.9]} 33. Ke2
{[%clk 0:01:41.8]} 33... Kg6 {[%clk 0:00:47.5]} 34. Nf2 {[%clk 0:01:34.4]} 34...
e3 {[%clk 0:00:40.9]} 35. Nd3 {[%clk 0:01:34.2]} 35... Kf5 {[%clk 0:00:38.9]}
36. Rh1 {[%clk 0:01:20.8]} 36... Kg4 {[%clk 0:00:30.7]} 37. Rh7 {[%clk
0:01:18.2]} 37... Re7 {[%clk 0:00:25.5]} 38. Rxe7 {[%clk 0:01:16.6]} 38... Bxe7
{[%clk 0:00:26.4]} 39. Kxe3 {[%clk 0:01:13.6]} 39... Kxg3 {[%clk 0:00:26.8]} 40.
Ke4 {[%clk 0:01:12.3]} 40... Kxg2 {[%clk 0:00:20.1]} 41. Nf4+ {[%clk 0:01:10.9]}
41... Kf2 {[%clk 0:00:18.3]} 42. Ne6 {[%clk 0:01:11]} 42... Ke2 {[%clk
0:00:18.3]} 43. Nxc7 {[%clk 0:01:10.9]} 43... Kd2 {[%clk 0:00:17.5]} 44. Kf5
{[%clk 0:01:06.7]} 44... Kc2 {[%clk 0:00:13.4]} 45. Ke6 {[%clk 0:01:06.9]} 45...
Bh4 {[%clk 0:00:12.1]} 46. Kxd6 {[%clk 0:01:06.4]} 46... Kxb2 {[%clk 0:00:11.6]}
47. Kxc5 {[%clk 0:01:02.7]} 47... Kxa2 {[%clk 0:00:11.4]} 48. Kc6 {[%clk
0:01:02]} 48... Kb3 {[%clk 0:00:11.4]} 49. c5 {[%clk 0:01:02]} 49... a4 {[%clk
0:00:11.8]} 50. Nb5 {[%clk 0:01:02]} 50... a3 {[%clk 0:00:09.9]} 51. Nxa3 {[%clk
0:01:01.4]} 51... Kxa3 {[%clk 0:00:10.8]} 52. Kb5 {[%clk 0:01:01]} 52... Kb3
{[%clk 0:00:08.8]} 53. d6 {[%clk 0:01:00.4]} 53... Bg3 {[%clk 0:00:06.4]} 54. d7
{[%clk 0:00:59.2]} 54... Bc7 {[%clk 0:00:06]} 55. Kc6 {[%clk 0:00:59.5]} 55...
Bd8 {[%clk 0:00:05.8]} 56. Kd6 {[%clk 0:00:59.3]} 56... Kc4 {[%clk 0:00:05.7]}
57. c6 {[%clk 0:00:59.6]} 57... Kb5 {[%clk 0:00:04.7]} 58. c7 {[%clk 0:00:59.9]}
1-0

[Event "*** Titled Tuesday Blitz"]
[Site "Chess.com"]
[Date "2020.11.03"]
[Round "3"]
[White "Kaliopa"]
[Black "MFBerna"]
[Result "0-1"]
[WhiteElo "2209"]
[BlackElo "2419"]
[TimeControl "180+1"]
[EndTime "10:30:41 PST"]
[Termination "MFBerna won on time"]

1. d4 {[%clk 0:03:00.9]} 1... d5 {[%clk 0:03:00]} 2. c4 {[%clk 0:03:00.6]} 2...
c6 {[%clk 0:03:00.4]} 3. Nc3 {[%clk 0:02:59.8]} 3... Nf6 {[%clk 0:03:00.4]} 4.
e3 {[%clk 0:02:59.7]} 4... e6 {[%clk 0:02:58.5]} 5. Nf3 {[%clk 0:02:59.6]} 5...
Nbd7 {[%clk 0:02:58.8]} 6. Bd3 {[%clk 0:02:59.3]} 6... Bd6 {[%clk 0:02:59.2]} 7.
O-O {[%clk 0:02:56.5]} 7... O-O {[%clk 0:02:59.1]} 8. e4 {[%clk 0:02:49.7]} 8...
dxc4 {[%clk 0:02:55.8]} 9. Bxc4 {[%clk 0:02:49.3]} 9... e5 {[%clk 0:02:56.3]}
10. Bg5 {[%clk 0:02:30.2]} 10... h6 {[%clk 0:02:56]} 11. Bh4 {[%clk 0:02:29.4]}
11... Qe7 {[%clk 0:02:55.7]} 12. Re1 {[%clk 0:02:11.3]} 12... Re8 {[%clk
0:02:53.8]} 13. Qd2 {[%clk 0:02:03.4]} 13... Nb6 {[%clk 0:02:48.8]} 14. Bb3
{[%clk 0:02:01.5]} 14... exd4 {[%clk 0:02:10.9]} 15. Qxd4 {[%clk 0:01:58.3]}
15... Bc5 {[%clk 0:01:56.9]} 16. Qd2 {[%clk 0:01:27]} 16... g5 {[%clk
0:01:31.8]} 17. Bg3 {[%clk 0:01:24.2]} 17... Nh5 {[%clk 0:01:24.3]} 18. e5
{[%clk 0:01:05.2]} 18... Bf5 {[%clk 0:01:24.2]} 19. Ne4 {[%clk 0:00:56.6]} 19...
Bxe4 {[%clk 0:01:19.9]} 20. Rxe4 {[%clk 0:00:56]} 20... Rad8 {[%clk 0:01:13.7]}
21. Qe2 {[%clk 0:00:50.4]} 21... Nd5 {[%clk 0:01:08.3]} 22. Re1 {[%clk
0:00:12.8]} 22... Kg7 {[%clk 0:01:04.6]} 23. Rg4 {[%clk 0:00:10.5]} 23... Ndf4
{[%clk 0:00:45.1]} 24. Bxf4 {[%clk 0:00:10.2]} 24... Nxf4 {[%clk 0:00:46]} 25.
Qe4 {[%clk 0:00:09.8]} 25... Nd3 {[%clk 0:00:26.9]} 26. Rf1 {[%clk 0:00:05.6]}
26... f6 {[%clk 0:00:12.7]} 27. exf6+ {[%clk 0:00:05.1]} 27... Qxf6 {[%clk
0:00:13.6]} 28. Qc4 {[%clk 0:00:02.9]} 28... b5 {[%clk 0:00:11.5]} 29. Qc2
{[%clk 0:00:00.7]} 29... Qxb2 {[%clk 0:00:04.1]} 30. Qb1 {[%clk 0:00:01.6]}
30... Qxb1 {[%clk 0:00:04.3]} 0-1